bitfinex-derivatives/quotes_SOLF0:USTF0_20250816
["timestamp","ask_amount","ask_price","bid_price","bid_amount"]
[1755368961625,1.62601195,187.93,187.86,3.01]
[1755368961828,2.91,187.89,187.86,3.01]
[1755368963526,2.91,187.88,187.86,3.01]
[1755368972337,2.91,187.88,187.87,3.02]
[1755368975742,2.91,187.88,187.85,1.62601195]
[1755368976040,2.91,187.88,187.86,3.02]
[1755368976237,2.91,187.88,187.87,3.02]
[1755368993449,6.85943026,187.88,187.87,3.02]
[1755368994549,2.9,187.88,187.87,3.02]
[1755368995053,2.9,187.9,187.87,3.05]
[1755368995254,3.96811987,187.89,187.87,3.05]
[1755368995448,2.9,187.9,187.87,3.05]
[1755368995646,6.86811987,187.89,187.87,3.05]
[1755368995949,2.9,187.89,187.87,3.05]
[1755369000366,2.9,187.88,187.87,3.05]
[1755369000657,6.87143809,187.88,187.86,1.62601195]
[1755369000962,2.9,187.87,187.86,4.67601195]
[1755369002961,2.9,187.9,187.86,1.62601195]
[1755369003156,2.9,187.88,187.87,3.05]
[1755369015274,6.87075643,187.88,187.87,3.05]
[1755369015477,8.2193,187.88,187.87,3.05]
[1755369019886,8.3493,187.88,187.87,3.05]
[1755369034394,3.03,187.88,187.87,3.05]
[1755369034602,3.03,187.88,187.87,4.67601195]
[1755369035701,8.3493,187.88,187.87,4.67601195]
[1755369039205,8.3493,187.88,187.87,3.05]
[1755369045115,3.03,187.87,187.86,4.71601195]
[1755369047216,3.03,187.87,187.86,3.09]
[1755369048414,8.3496,187.87,187.86,3.09]
[1755369049818,3.03,187.87,187.86,3.09]
[1755369057327,2.98,187.86,187.85,1.62601195]
[1755369057526,2.98,187.86,187.84,3.04]
[1755369057730,2.98,187.86,187.85,3.04]
[1755369057920,8.3001,187.86,187.85,3.04]
[1755369059032,2.98,187.86,187.85,3.04]
[1755369063533,2.98,187.85,187.84,8.3604]
[1755369063732,2.98,187.85,187.84,3.04]
[1755369067539,8.3002,187.85,187.84,3.04]
[1755369067744,8.3002,187.85,187.79,0.92644357]
[1755369067745,2.98,187.87,187.82,3.04]
[1755369068034,5.3207,187.83,187.82,3.04]
[1755369068239,8.3007,187.83,187.82,3.04]
[1755369068938,2.98,187.83,187.82,3.04]
[1755369069442,8.3007,187.83,187.82,3.04]
[1755369071445,2.98,187.83,187.82,3.04]
[1755369071647,2.98,187.87,187.82,3.04]
[1755369071842,2.98,187.87,187.84,3.04]
[1755369072238,5.3199,187.86,187.85,3.04]
[1755369072441,8.2999,187.86,187.85,3.04]
[1755369074641,5.3203,187.85,187.84,3.04]
[1755369074950,8.3003,187.85,187.84,3.04]
[1755369077548,8.3003,187.85,187.82,1.62601195]
[1755369077749,1.62601195,187.89,187.76,221.48719573]
[1755369077750,8.3004,187.84,187.83,3.04]
[1755369081039,2.95,187.82,187.81,2.82]
[1755369081856,5.321,187.82,187.81,2.82]
[1755369082047,3.98881507,187.82,187.78,2.82]
[1755369082256,2.95,187.81,187.78,2.82]
[1755369083548,2.95,187.81,187.77,1.62601195]
[1755369083748,2.95,187.81,187.79,2.82]
[1755369083949,1.62601195,187.83,187.79,2.82]
[1755369083950,4.0530244,187.8,187.79,2.82]
[1755369084254,2.95,187.8,187.79,2.82]
[1755369084749,2.95,187.79,187.75,1.62601195]
[1755369084954,2.95,187.79,187.76,2.82]
[1755369087650,1.62601195,187.79,187.64,2.82]
[1755369087852,4.47841421,187.84,187.72,2.82]
[1755369087853,4.57601195,187.77,187.72,2.82]
[1755369088054,2.95,187.76,187.7,2.82]
[1755369088453,2.95,187.76,187.71,2.82]
[1755369090058,8.2736,187.73,187.71,2.82]
[1755369092756,5.3238,187.72,187.71,2.82]
[1755369094556,1.62601195,187.77,187.71,4.44601195]
[1755369094758,1.62601195,187.83,187.76,2.82]
[1755369094967,2.95,187.82,187.78,2.82]
[1755369095164,2.95,187.82,187.79,2.82]
[1755369095351,2.95,187.82,187.77,1.62601195]
[1755369095555,2.95,187.82,187.78,2.82]
[1755369095757,8.2719,187.79,187.78,2.82]
[1755369095961,2.95,187.79,187.75,1.62601195]
[1755369096156,2.95,187.79,187.76,2.82]
[1755369096662,5.3221,187.78,187.76,2.82]
[1755369096852,8.2721,187.78,187.76,2.82]
[1755369097762,2.95,187.77,187.76,2.82]
[1755369098561,8.2724,187.77,187.76,2.82]
[1755369100462,2.95,187.76,187.7,4.44601195]
[1755369100665,2.95,187.76,187.71,2.82]
[1755369101355,2.95,187.72,187.71,2.82]
[1755369103265,8.2738,187.72,187.71,2.82]
[1755369104868,2.95,187.72,187.71,2.82]
[1755369105659,2.95,187.72,187.7,2.82]
[1755369105968,2.95,187.72,187.71,2.82]
[1755369107270,8.2738,187.72,187.71,2.82]
[1755369108072,2.95,187.72,187.71,2.82]
[1755369109176,8.2738,187.72,187.71,2.82]
[1755369113880,2.87,187.76,187.71,2.82]
[1755369115081,2.87,187.73,187.71,2.82]
[1755369117083,5.3235,187.74,187.71,2.82]
[1755369117381,2.87,187.72,187.71,2.82]
[1755369118680,2.87,187.72,187.71,2.96]
[1755369121777,4.47841421,187.8,187.7,1.62601195]
[1755369121986,4.47841421,187.8,187.64,42.92714702]
[1755369121987,2.87,187.77,187.74,2.96]
[1755369122181,2.87,187.75,187.7,2.96]
[1755369122581,2.87,187.75,187.71,2.96]
[1755369123282,1.62601195,187.74,187.67,1.62601195]
[1755369123478,2.87,187.73,187.68,2.96]
[1755369123974,2.87,187.69,187.68,2.96]
[1755369125179,8.1947,187.69,187.68,2.96]
[1755369128287,5.3245,187.7,187.68,2.96]
[1755369128587,8.1945,187.7,187.68,2.96]
[1755369128886,5.3242,187.71,187.68,8.2849]
[1755369129090,2.87,187.72,187.7,2.96]
[1755369129386,2.87,187.75,187.7,2.96]
[1755369129586,4.05358929,187.74,187.7,2.96]
[1755369129789,2.87,187.72,187.7,2.96]
[1755369130192,5.3241,187.71,187.7,2.96]
[1755369130386,8.1941,187.71,187.7,2.96]
[1755369136298,5.3248,187.69,187.68,2.96]
[1755369136491,8.1948,187.69,187.68,2.96]
[1755369143505,3.02,187.68,187.67,4.66601195]
[1755369143702,5.325,187.68,187.67,4.66601195]
[1755369143906,8.345,187.68,187.67,4.66601195]
[1755369146407,8.345,187.68,187.67,3.04]
[1755369150211,3.02,187.68,187.67,3.04]
[1755369154317,3.02,187.73,187.68,3.04]
[1755369154513,4.05922053,187.72,187.7,1.62601195]
[1755369154713,3.02,187.71,187.7,1.62601195]
[1755369155209,3.02,187.71,187.69,3.04]
[1755369155809,5.324,187.72,187.69,3.04]
[1755369156011,3.02,187.7,187.69,3.04]
[1755369156404,5.324,187.72,187.69,3.04]
[1755369156609,5.324,187.72,187.7,3.04]
[1755369157212,8.3436,187.73,187.7,9.99041195]
[1755369157414,4.05932794,187.72,187.71,3.04]
[1755369157712,4.05932794,187.72,187.71,5.3241]
[1755369157911,3.02,187.75,187.71,3.04]
[1755369158111,3.02,187.75,187.74,1.62601195]
[1755369158310,3.02,187.75,187.74,4.66601195]
[1755369158514,7.07879804,187.75,187.74,4.66601195]
[1755369158712,7.07879804,187.75,187.74,3.04]
[1755369162918,5.3222,187.78,187.74,3.04]
[1755369163116,4.05547045,187.77,187.76,3.04]
[1755369163320,3.02,187.79,187.77,3.04]
[1755369163620,7.07346549,187.78,187.77,3.04]
[1755369163811,3.02,187.79,187.77,3.04]
[1755369164222,3.02,187.78,187.77,3.04]
[1755369174129,3.02,187.78,187.77,8.3624]
[1755369174429,3.02,187.78,187.77,8.2624]
[1755369175128,5.3214,187.81,187.77,8.2624]
[1755369175332,2.88,187.79,187.78,2.94]
[1755369180433,2.88,187.79,187.75,2.94]
[1755369181029,8.2019,187.79,187.75,8.2628]
[1755369181224,2.88,187.78,187.76,2.94]
[1755369182036,2.88,187.78,187.76,5.3227]
[1755369182233,2.88,187.78,187.77,2.94]
[1755369184636,2.88,187.79,187.77,6.95171257]
[1755369184843,2.88,187.79,187.78,2.94]
[1755369187345,2.88,187.83,187.78,2.94]
[1755369187540,2.88,187.81,187.8,1.62931257]
[1755369187734,2.88,187.82,187.8,1.62931257]
[1755369187939,2.88,187.81,187.8,1.62931257]
[1755369188141,2.88,187.81,187.8,4.56931257]
[1755369192951,5.3208,187.83,187.81,2.94]
[1755369193450,2.88,187.82,187.81,2.94]
[1755369201255,2.88,187.82,187.81,8.2613]
[1755369204955,3.0,187.88,187.81,2.94]
[1755369205156,6.11460149,187.95,187.87,4.71931257]
[1755369205458,3.0,187.9,187.89,4.71931257]
[1755369206049,3.0,187.9,187.87,4.71931257]
[1755369206854,8.319,187.9,187.87,4.71931257]
[1755369207054,3.0,187.89,187.88,3.09]
[1755369209157,8.319,187.89,187.88,3.09]
[1755369209358,3.0,187.89,187.88,3.09]
[1755369216569,8.319,187.89,187.88,3.09]
[1755369217667,3.0,187.89,187.88,3.09]
[1755369218467,8.319,187.89,187.88,3.09]
[1755369219167,3.0,187.89,187.88,3.09]
[1755369220168,8.319,187.89,187.88,3.09]
[1755369222266,3.0,187.89,187.88,3.09]
[1755369223170,3.0,187.91,187.89,3.09]
[1755369223365,3.0,187.96,187.91,3.09]
[1755369223560,5.3178,187.94,187.91,3.09]
[1755369223760,130.60931257,187.98,187.91,3.09]
[1755369223761,3.0,187.97,187.93,3.09]
[1755369223968,4.00475958,187.96,187.93,3.09]
[1755369224167,3.0,187.95,187.93,3.09]
[1755369226370,3.0,187.95,187.94,3.09]
[1755369237882,2.95,187.97,187.94,3.09]
[1755369241386,2.95,187.96,187.93,2.97]
[1755369241580,2.95,187.94,187.79,2.97]
[1755369241784,2.95,187.92,187.89,2.97]
[1755369242376,2.95,187.94,187.89,9.91821257]
[1755369242685,2.95,187.93,187.92,2.97]
[1755369244387,2.95,187.94,187.92,2.97]
[1755369246589,2.95,187.93,187.92,2.97]
[1755369248383,2.95,187.97,187.92,2.97]
[1755369248580,2.95,187.95,187.92,2.97]
[1755369248883,2.95,187.97,187.9,4.59931257]
[1755369249085,2.95,187.93,187.88,2.97]
[1755369249291,4.01654047,187.92,187.86,1.62931257]
[1755369249484,2.95,187.9,187.87,2.97]
[1755369249683,2.95,187.89,187.87,2.97]
[1755369250088,1.62931257,187.94,187.87,2.97]
[1755369250089,2.95,187.9,187.87,2.97]
[1755369253793,2.95,187.9,187.88,1.62931257]
[1755369253991,2.95,187.9,187.89,2.97]
[1755369260196,1.62931257,187.95,187.89,2.97]
[1755369260392,3.0,187.93,187.89,2.97]
[1755369260696,3.0,187.91,187.89,2.97]
[1755369260891,9.10069166,187.96,187.9,2.9]
[1755369261091,3.0,187.94,187.9,2.9]
[1755369261291,3.0,187.92,187.9,2.9]
[1755369264198,4.01885818,187.91,187.9,2.9]
[1755369264497,7.01885818,187.91,187.9,2.9]
[1755369265700,3.0,187.91,187.9,2.9]
[1755369270397,1.62931257,187.96,187.9,2.9]
[1755369270597,7.01276321,187.95,187.92,1.62931257]
[1755369270802,4.01276321,187.94,187.93,2.9]
[1755369271297,7.01276321,187.94,187.93,2.9]
[1755369274809,3.0,187.94,187.93,2.9]
[1755369275307,3.0,187.94,187.9,4.52931257]
[1755369275507,3.0,187.94,187.91,2.9]
[1755369275702,3.0,187.94,187.92,2.9]
[1755369276104,4.01294045,187.93,187.9,2.9]
[1755369276408,3.0,187.91,187.9,2.9]
[1755369276608,4.01294045,187.91,187.9,2.9]
[1755369276906,3.0,187.91,187.9,2.9]
[1755369277111,7.01294045,187.91,187.9,2.9]
[1755369279008,3.0,187.9,187.89,2.9]
[1755369279207,3.0,187.9,187.88,1.62931257]
[1755369279407,3.0,187.92,187.87,2.9]
[1755369279613,3.0,187.9,187.87,2.9]
[1755369280110,3.0,187.92,187.88,1.62931257]
[1755369280317,7.01430694,187.91,187.89,2.9]
[1755369280515,3.0,187.91,187.89,2.9]
[1755369282810,1.62931257,187.95,187.89,2.9]
[1755369283013,4.01533862,187.94,187.89,2.9]
[1755369283215,3.0,187.92,187.89,2.9]
[1755369283916,1.62931257,187.95,187.89,2.9]
[1755369284116,3.0,187.93,187.91,2.9]
[1755369284312,3.0,187.93,187.92,4.52931257]
[1755369284609,3.0,187.94,187.92,4.52931257]
[1755369284805,7.01614925,187.93,187.92,4.52931257]
[1755369285316,7.01614925,187.93,187.92,2.9]
[1755369285620,3.0,187.92,187.91,2.9]
[1755369285915,7.01614925,187.92,187.91,2.9]
[1755369286415,4.01614925,187.92,187.91,2.9]
[1755369286616,7.01614925,187.92,187.91,2.9]
[1755369293627,4.01614925,187.92,187.91,2.9]
[1755369295226,3.0,187.93,187.91,2.9]
[1755369295528,3.0,187.93,187.92,4.65931257]
[1755369295734,7.01689893,187.93,187.92,4.65931257]
[1755369296424,7.01688419,187.93,187.92,4.65931257]
[1755369298529,7.01688419,187.93,187.92,1.62931257]
[1755369298729,7.01688419,187.93,187.92,4.65931257]
[1755369299731,7.01688419,187.93,187.92,3.03]
[1755369300327,3.0,187.92,187.89,1.62931257]
[1755369300528,4.01023255,187.91,187.89,4.65931257]
[1755369300827,3.0,187.9,187.89,4.65931257]
[1755369301330,3.0,187.94,187.9,3.03]
[1755369301634,7.01102009,187.93,187.92,4.65931257]
[1755369303127,4.01102009,187.93,187.92,4.65931257]
[1755369303634,7.01102009,187.93,187.92,4.65931257]
[1755369308130,4.01102009,187.93,187.92,4.65931257]
[1755369308329,3.0,187.94,187.93,3.03]
[1755369308937,7.01186267,187.94,187.93,3.03]
[1755369312936,4.01186267,187.94,187.92,4.65931257]
[1755369313138,7.01186267,187.93,187.92,4.65931257]
[1755369314243,4.01186267,187.93,187.87,3.03]
[1755369314442,3.0,187.91,187.89,3.03]
[1755369314743,3.0,187.91,187.9,3.03]
[1755369315442,7.01196069,187.91,187.9,3.03]
[1755369316441,4.01196069,187.91,187.9,3.03]
[1755369316643,3.0,187.93,187.9,1.62931257]
[1755369316944,133.45873887,187.98,187.92,4.65931257]
[1755369317144,3.0,187.96,187.93,3.03]
[1755369317348,3.0,187.94,187.93,3.03]
[1755369317538,7.0114486,187.94,187.93,3.03]
[1755369319054,2.87,187.96,187.93,3.03]
[1755369319236,4.01100524,187.95,187.93,3.03]
[1755369319549,2.87,187.96,187.94,3.06]
[1755369319736,4.01052967,187.95,187.94,3.06]
[1755369320847,6.88052967,187.95,187.94,3.06]
[1755369325047,4.01052967,187.95,187.94,3.06]
[1755369325446,6.88052967,187.95,187.94,3.06]
[1755369328249,4.01052967,187.95,187.94,3.06]
[1755369329449,6.88052967,187.95,187.94,3.06]
[1755369329649,2.87,187.95,187.94,3.06]
[1755369335766,2.87,187.94,187.9,3.06]
[1755369335963,2.87,187.92,187.9,3.06]
[1755369338664,2.87,187.9,187.84,3.06]
[1755369341967,2.87,187.88,187.84,3.06]
[1755369342172,2.87,187.86,187.84,3.06]
[1755369342467,2.87,187.86,187.8,2.54184102]
[1755369342675,2.87,187.86,187.85,3.06]
[1755369343762,2.87,187.86,187.81,3.06]
[1755369344068,2.87,187.86,187.8,2.54184102]
[1755369344267,2.87,187.86,187.83,3.06]
[1755369344668,2.87,187.86,187.81,3.06]
[1755369345067,2.87,187.87,187.81,5.3211]
[1755369345267,2.87,187.87,187.84,3.06]
[1755369345568,2.87,187.92,187.84,3.06]
[1755369345761,2.87,187.9,187.84,3.06]
[1755369347168,2.87,187.9,187.84,8.3803]
[1755369347368,2.87,187.9,187.85,3.06]
[1755369351372,2.87,187.9,187.83,2.54184102]
[1755369351674,3.99279812,187.89,187.84,2.86]
[1755369351975,3.01,187.88,187.85,2.86]
[1755369356878,3.01,187.91,187.81,2.86]
[1755369357073,3.01,187.89,187.81,2.86]
[1755369358872,3.988713,187.88,187.81,2.86]
[1755369359078,3.01,187.86,187.81,2.86]
[1755369360780,3.01,187.91,187.81,2.86]
[1755369360977,3.01,187.89,187.81,2.86]
[1755369361181,7.00050719,187.92,187.8,2.54184102]
[1755369361182,2.54184102,187.92,187.83,2.86]
[1755369361378,3.01,187.87,187.83,2.86]
[1755369362182,3.01,187.92,187.83,2.86]
[1755369362484,3.01,187.9,187.83,2.86]
[1755369362680,3.01,187.88,187.83,2.86]
[1755369362875,3.01,187.88,187.8,2.54184102]
[1755369363081,3.01,187.88,187.81,2.86]
[1755369364383,3.01,187.86,187.81,2.86]
[1755369364579,3.01,187.86,187.8,2.54184102]
[1755369364774,3.01,187.92,187.81,2.86]
[1755369364985,3.01,187.9,187.81,2.86]
[1755369365179,3.01,187.88,187.81,2.86]
[1755369365483,2.54184102,187.91,187.81,2.86]
[1755369365484,3.99185557,187.87,187.81,2.86]
[1755369365684,3.01,187.86,187.81,2.86]
[1755369368682,3.01,187.86,187.8,2.86]
[1755369379298,3.99986972,187.85,187.8,2.86]
[1755369379592,3.01,187.86,187.8,2.86]
[1755369379797,3.05,187.84,187.8,2.86]
[1755369380095,3.05,187.83,187.8,2.86]
[1755369384698,3.05,187.83,187.81,1.62875398]
[1755369384998,3.05,187.83,187.82,2.98]
[1755369387797,1.62875398,187.88,187.82,2.98]
[1755369387992,4.45866617,187.89,187.82,2.98]
[1755369387993,3.05,187.85,187.83,1.62875398]
[1755369388199,3.05,187.89,187.84,2.98]
[1755369388396,3.05,187.87,187.84,2.98]
[1755369388598,4.00682375,187.86,187.84,2.98]
[1755369388794,3.05,187.85,187.84,2.98]
[1755369394502,7.0593857,187.85,187.84,2.98]
[1755369399010,4.0093857,187.85,187.84,2.98]
[1755369399208,3.05,187.85,187.84,2.98]
[1755369399409,7.0593857,187.85,187.84,2.98]
[1755369410827,4.0093857,187.85,187.84,2.98]
[1755369411228,6.8993857,187.85,187.84,2.98]
[1755369412026,4.0093857,187.85,187.84,2.98]
[1755369412827,6.8993857,187.85,187.84,2.98]
[1755369413526,2.89,187.84,187.83,4.50875398]
[1755369414828,6.08742015,187.89,187.83,4.50875398]
[1755369414829,2.89,187.85,187.83,1.62875398]
[1755369415131,2.89,187.85,187.84,2.88]
[1755369415933,2.89,187.89,187.83,1.62875398]
[1755369416133,2.89,187.87,187.84,2.88]
[1755369416430,2.89,187.85,187.83,1.62875398]
[1755369417028,2.89,187.85,187.84,2.88]
[1755369417331,6.90508966,187.85,187.84,2.88]
[1755369427834,4.01508966,187.85,187.84,2.88]
[1755369428040,2.89,187.9,187.84,2.88]
[1755369428237,4.02582069,187.89,187.86,1.62875398]
[1755369428440,6.91582069,187.88,187.87,2.88]
[1755369430643,6.91582069,187.88,187.82,2.88]
[1755369430644,2.89,187.87,187.82,2.88]
[1755369430944,2.89,187.85,187.82,2.88]
[1755369431138,4.02415861,187.84,187.82,2.88]
[1755369431343,2.89,187.83,187.82,2.88]
[1755369433748,2.89,187.82,187.81,2.88]
[1755369433942,6.91429785,187.82,187.81,2.88]
[1755369442751,3.08,187.81,187.79,2.82]
[1755369443653,3.08,187.81,187.78,2.82]
[1755369443954,3.08,187.81,187.79,2.82]
[1755369446244,3.08,187.82,187.78,2.82]
[1755369446448,1.62875398,187.83,187.78,2.82]
[1755369446449,3.08,187.8,187.78,2.82]
[1755369446852,3.08,187.8,187.75,1.62875398]
[1755369447047,3.08,187.8,187.77,2.82]
[1755369447649,1.62875398,187.83,187.77,2.82]
[1755369447650,3.08,187.78,187.77,2.82]
[1755369448752,7.09363829,187.78,187.75,2.82]
[1755369448958,3.08,187.77,187.74,2.82]
[1755369449547,3.08,187.76,187.74,2.82]
[1755369449960,3.08,187.75,187.74,2.82]
[1755369458364,3.08,187.77,187.72,2.82]
[1755369481283,4.003467,187.76,187.72,2.82]
[1755369481490,3.07,187.75,187.72,2.82]
[1755369483588,3.07,187.74,187.72,2.82]
[1755369486391,3.07,187.79,187.73,1.62875398]
[1755369486588,3.07,187.77,187.74,2.85]
[1755369486890,7.07471043,187.76,187.74,2.85]
[1755369487087,3.07,187.76,187.74,2.85]
[1755369488489,4.00720745,187.75,187.74,2.85]
[1755369488692,7.07720745,187.75,187.74,2.85]
[1755369490589,4.00720745,187.75,187.74,2.85]
[1755369490790,7.07720745,187.75,187.74,2.85]
[1755369495498,7.07720745,187.75,187.71,1.62875398]
[1755369495694,7.07720745,187.74,187.73,2.85]
[1755369504004,3.07,187.74,187.73,2.85]
[1755369504798,4.48159039,187.79,187.73,2.85]
[1755369505007,4.01519241,187.78,187.73,2.85]
[1755369505196,4.48159039,187.79,187.73,2.85]
[1755369505197,3.07,187.74,187.73,2.85]
[1755369509408,3.07,187.78,187.73,4.47875398]
[1755369509610,4.01387812,187.77,187.73,1.62875398]
[1755369509811,7.08387812,187.76,187.74,2.95]
[1755369510010,7.08387812,187.75,187.74,2.95]
[1755369511810,3.07,187.75,187.74,2.95]
[1755369512011,7.08360609,187.75,187.74,2.95]
[1755369512309,3.07,187.75,187.74,2.95]
[1755369515312,7.08418789,187.75,187.74,2.95]
[1755369521318,7.08418789,187.75,187.72,1.62875398]
[1755369521515,3.07,187.74,187.73,2.95]
[1755369532727,4.01328591,187.74,187.69,4.52875398]
[1755369532925,4.01328591,187.73,187.69,4.52875398]
[1755369533121,2.93,187.71,187.69,1.62875398]
[1755369533322,2.93,187.71,187.7,1.62875398]
[1755369533523,2.93,187.71,187.7,4.52875398]
[1755369535728,2.93,187.71,187.7,2.9]
[1755369536128,6.93913471,187.71,187.7,2.9]
[1755369536427,2.93,187.71,187.7,2.9]
[1755369538331,2.93,187.71,187.69,2.9]
[1755369541232,2.93,187.71,187.7,2.9]
[1755369543435,2.93,187.71,187.67,1.62875398]
[1755369543634,2.93,187.71,187.69,2.9]
[1755369545135,2.93,187.71,187.67,1.62875398]
[1755369545431,2.93,187.71,187.7,2.9]
[1755369573364,6.9480027,187.71,187.7,2.9]
[1755369576963,6.9480027,187.71,187.63,90.20951758]
[1755369576964,3.11,187.7,187.64,1.62875398]
[1755369577169,4.02283303,187.69,187.65,3.12]
[1755369577466,1.62875398,187.71,187.65,3.12]
[1755369577467,3.11,187.68,187.65,3.12]
[1755369578263,3.11,187.67,187.65,3.12]
[1755369593777,3.11,187.67,187.66,1.62875398]
[1755369594080,3.11,187.67,187.66,4.54875398]
[1755369596376,2.96,187.72,187.67,2.92]
[1755369596580,2.96,187.7,187.69,2.92]
[1755369596879,6.98077973,187.7,187.69,2.92]
[1755369597379,4.02077973,187.7,187.69,2.92]
[1755369597679,6.98077973,187.7,187.69,2.92]
[1755369599384,4.02077973,187.7,187.68,1.62875398]
[1755369599576,6.98077973,187.69,187.68,4.54875398]
[1755369601583,6.98077973,187.69,187.68,2.92]
[1755369604186,4.02077973,187.69,187.67,2.92]
[1755369604377,2.96,187.68,187.67,2.92]
[1755369614290,6.98579632,187.68,187.67,2.92]
[1755369618886,2.96,187.68,187.67,2.92]
[1755369619095,6.98665855,187.68,187.67,2.92]
[1755369620292,2.88,187.67,187.66,2.95]
[1755369622789,2.88,187.68,187.66,2.95]
[1755369622989,2.88,187.68,187.67,4.57875398]
[1755369623194,6.90853891,187.68,187.67,4.57875398]
[1755369623700,4.02853891,187.68,187.67,4.57875398]
[1755369623997,4.02853891,187.68,187.67,2.95]
[1755369624995,6.90853891,187.68,187.67,2.95]
[1755369634005,4.47476462,187.73,187.67,2.95]
[1755369634308,4.47476462,187.73,187.59,171.78744353]
[1755369634309,2.88,187.71,187.7,2.95]
[1755369634609,6.90844902,187.71,187.7,2.95]
[1755369662533,6.89745735,187.71,187.7,2.95]
[1755369677543,6.90148545,187.71,187.7,2.95]
[1755369694863,6.90148545,187.71,187.7,4.57875398]
[1755369700673,4.02148545,187.71,187.7,4.57875398]
[1755369702270,7.13148545,187.71,187.7,4.57875398]
[1755369723088,3.0,187.75,187.71,8.294]
[1755369723289,3.0,187.75,187.74,2.97]
[1755369726492,3.0,187.79,187.74,2.97]
[1755369726787,1.62875398,187.82,187.79,2.97]
[1755369726788,3.0,187.82,187.79,2.97]
[1755369726977,3.0,187.84,187.81,1.62875398]
[1755369727185,3.0,187.84,187.83,4.59875398]
[1755369727380,1.62875398,187.91,187.83,4.59875398]
[1755369727381,3.0,187.85,187.84,2.97]
[1755369727590,3.0,187.85,187.84,4.59875398]
[1755369732290,3.0,187.92,187.84,1.62875398]
[1755369732492,3.0,187.92,187.87,4.59875398]
[1755369734794,3.0,187.92,187.88,2.97]
[1755369734995,3.0,187.92,187.89,2.97]
[1755369743597,3.0,187.92,187.9,2.96]
[1755369745701,3.0,187.92,187.88,2.96]
[1755369749606,3.0,187.92,187.85,1.62875398]
[1755369749799,3.0,187.92,187.86,2.96]
[1755369751209,1.62875398,187.91,187.86,2.96]
[1755369751404,1.62875398,187.89,187.86,2.96]
[1755369751599,3.07,187.88,187.86,2.96]
[1755369758811,3.07,187.88,187.87,2.96]
[1755369763109,7.03574532,187.88,187.87,2.96]
[1755369769214,3.98242304,187.88,187.86,3.13]
[1755369769415,128.5,187.89,187.86,3.13]
[1755369769613,3.9823771,187.88,187.86,3.13]
[1755369769917,128.5,187.89,187.86,3.13]
[1755369770213,3.98221131,187.88,187.86,3.13]
[1755369770413,3.98221131,187.87,187.86,3.13]
[1755369770813,3.98221131,187.88,187.86,3.13]
[1755369771016,3.98221131,187.87,187.86,3.13]
[1755369772615,6.90221131,187.87,187.86,3.13]